Body,Body Name,Date,TransNo,Amount £ (Excl VAT),Supplier name,Description,Expense Area,Expense Type,Expense Code
http://opendatacommunities.org/id/london-borough-council/sutton,London Borough of Sutton,29/08/0202,10014267,20,MY.MORRISONS.CO,ENHILL KITCHEN SOCIAL - SANDWICHES DEPOSIT,Health and Wellbeing,Equipment And Materials Purchase,A40000
http://opendatacommunities.org/id/london-borough-council/sutton,London Borough of Sutton,11/09/0202,10014267,50,TESCO GIFT CAR,OUCHER FOR CHILDRENS CENTRE,Health and Wellbeing,Equipment And Materials Purchase,A40000
http://opendatacommunities.org/id/london-borough-council/sutton,London Borough of Sutton,01/09/0202,10014267,183.25,WM MORRISONS STOR,ENHILL KITCHEN SOCIAL SANDWICHES ORDER,Health and Wellbeing,Equipment And Materials Purchase,A40000
http://opendatacommunities.org/id/london-borough-council/sutton,London Borough of Sutton,01/09/0202,10014267,51.92,WM MORRISONS STOR,hildrens Centre Services spends,Health and Wellbeing,Miscellaneous Expenses,A49000
http://opendatacommunities.org/id/london-borough-council/sutton,London Borough of Sutton,01/09/0202,10014267,56.64,AMZNMKTPLAC,hildrens Centre Services spends,Health and Wellbeing,Miscellaneous Expenses,A49000
http://opendatacommunities.org/id/london-borough-council/sutton,London Borough of Sutton,01/09/0202,10014267,4.99,AMZNMKTPLAC,hildrens Centre Services spends,Health and Wellbeing,Miscellaneous Expenses,A49000
http://opendatacommunities.org/id/london-borough-council/sutton,London Borough of Sutton,01/09/0202,10014267,10.79,AMZNMKTPLAC,hildrens Centre Services spends,Health and Wellbeing,Miscellaneous Expenses,A49000
http://opendatacommunities.org/id/london-borough-council/sutton,London Borough of Sutton,01/09/0202,10014267,16.75,COSTCO WHOLESALE #12,hildrens Centre Services spends,Health and Wellbeing,Miscellaneous Expenses,A49000
http://opendatacommunities.org/id/london-borough-council/sutton,London Borough of Sutton,30/08/0202,10014267,8.32,AMZNMKTPLAC,hildrens Centre Services spends,Health and Wellbeing,Miscellaneous Expenses,A49000
http://opendatacommunities.org/id/london-borough-council/sutton,London Borough of Sutton,30/08/0202,10014267,10.82,AMZNMKTPLAC,hildrens Centre Services spends,Health and Wellbeing,Miscellaneous Expenses,A49000
http://opendatacommunities.org/id/london-borough-council/sutton,London Borough of Sutton,29/08/0202,10014267,7.84,AMZNMKTPLAC,hildrens Centre Services spends,Health and Wellbeing,Miscellaneous Expenses,A49000
http://opendatacommunities.org/id/london-borough-council/sutton,London Borough of Sutton,29/08/0202,10014267,9.98,AMZNMKTPLAC,hildrens Centre Services spends,Health and Wellbeing,Miscellaneous Expenses,A49000
http://opendatacommunities.org/id/london-borough-council/sutton,London Borough of Sutton,29/08/0202,10014267,5.97,AMZNMKTPLAC,hildrens Centre Services spends,Health and Wellbeing,Miscellaneous Expenses,A49000
http://opendatacommunities.org/id/london-borough-council/sutton,London Borough of Sutton,02/09/0202,10014267,3.58,LIDL U,hildrens Centre Services spends,Health and Wellbeing,Miscellaneous Expenses,A49000
http://opendatacommunities.org/id/london-borough-council/sutton,London Borough of Sutton,15/09/0202,10014267,26.97,LIDL GB LONDO,hildrens Centre Services spends,Health and Wellbeing,Miscellaneous Expenses,A49000
http://opendatacommunities.org/id/london-borough-council/sutton,London Borough of Sutton,14/09/0202,10014267,215.51,LIDL GB LONDO,hildrens Centre Services spends,Health and Wellbeing,Miscellaneous Expenses,A49000
http://opendatacommunities.org/id/london-borough-council/sutton,London Borough of Sutton,12/09/0202,10014267,76,LUL TICKET MACHIN,RAIN TICKETS FOR EPEC CONFERENCE,Health and Wellbeing,Miscellaneous Expenses,A49000
http://opendatacommunities.org/id/london-borough-council/sutton,London Borough of Sutton,29/08/0202,10014267,11.19,AMZNMKTPLAC,hildrens Centre Services spends,Health and Wellbeing,Miscellaneous Expenses,A49000
http://opendatacommunities.org/id/london-borough-council/sutton,London Borough of Sutton,29/08/0202,10014267,33.85,AMAZON  204-0308693-3,OYS AND EQUIPMENT,Health and Wellbeing,Equipment And Materials Purchase,A40000
http://opendatacommunities.org/id/london-borough-council/sutton,London Borough of Sutton,14/09/0202,10014267,4.16,AMAZON.CO.UK 1461O5G3,OYS AND EQUIPMENT,Health and Wellbeing,Equipment And Materials Purchase,A40000
http://opendatacommunities.org/id/london-borough-council/sutton,London Borough of Sutton,22/09/0202,10014267,8.32,TWINK,WINKL SUBSCRIPTION,Health and Wellbeing,Equipment And Materials Purchase,A40000
http://opendatacommunities.org/id/london-borough-council/sutton,London Borough of Sutton,19/09/0202,10014267,34.99,AMAZON.CO.UK 142HQ9IZ,OYS AND EQUIPMENT,Health and Wellbeing,Equipment And Materials Purchase,A40000
http://opendatacommunities.org/id/london-borough-council/sutton,London Borough of Sutton,29/08/0202,10014267,29.71,BAKER ROS,OYS AND EQUIPMENT,Health and Wellbeing,Equipment And Materials Purchase,A40000
http://opendatacommunities.org/id/london-borough-council/sutton,London Borough of Sutton,11/09/0202,10014267,-78.81,TESCO STORES 599,ESCO REFUND,Health and Wellbeing,Provisions,A41006
http://opendatacommunities.org/id/london-borough-council/sutton,London Borough of Sutton,05/09/0202,10014267,93.85,SAINSBURYS.CO.U,ROCERIES,Health and Wellbeing,Provisions,A41006
http://opendatacommunities.org/id/london-borough-council/sutton,London Borough of Sutton,15/09/0202,10014267,83.9,SAINSBURYS.CO.U,ROCERIES,Health and Wellbeing,Provisions,A41006
http://opendatacommunities.org/id/london-borough-council/sutton,London Borough of Sutton,12/09/0202,10014267,72.07,TESCO STORES 599,ROCERIES,Health and Wellbeing,Provisions,A41006
http://opendatacommunities.org/id/london-borough-council/sutton,London Borough of Sutton,11/09/0202,10014267,78.81,TESCO STORES 599,ESCO REFUND,Health and Wellbeing,Provisions,A41006
http://opendatacommunities.org/id/london-borough-council/sutton,London Borough of Sutton,29/08/0202,10014267,77.87,TESCO STORES 599,ROCERIES,Health and Wellbeing,Provisions,A41006
http://opendatacommunities.org/id/london-borough-council/sutton,London Borough of Sutton,31/08/0202,10014267,47.4,AMZNMKTPLAC,PLIT - ON TREND FABRICS CALICO,Health and Wellbeing,Equipment And Materials Purchase,A40000
http://opendatacommunities.org/id/london-borough-council/sutton,London Borough of Sutton,30/08/0202,10014267,75.15,AMZNMKTPLAC,PLIT - SCOLA TEXTILE PAINT 6 X 150ML,Health and Wellbeing,Equipment And Materials Purchase,A40000
http://opendatacommunities.org/id/london-borough-council/sutton,London Borough of Sutton,25/09/0202,10014267,-5,WWW.SUTTON.GOV.U,EFUND FOR TEST PURCHASE,Health and Wellbeing,IT Software Purchase,A45040
http://opendatacommunities.org/id/london-borough-council/sutton,London Borough of Sutton,22/09/0202,10014267,5,WWW.SUTTON.GOV.U,EST PURCHASE FOR ONLINE PAYMENT SYSTEM,Health and Wellbeing,IT Software Purchase,A45040
http://opendatacommunities.org/id/london-borough-council/sutton,London Borough of Sutton,15/09/0202,10014267,56.14,TRAINLIN,nr Management Promoting Ind / Int Prov Expenses,Health and Wellbeing,Miscellaneous Expenses,A49000
http://opendatacommunities.org/id/london-borough-council/sutton,London Borough of Sutton,20/09/0202,10014267,59.99,AMZNMKTPLAC,nr Management Promoting Ind / Int Pro Expenses,Health and Wellbeing,Miscellaneous Expenses,A49000
http://opendatacommunities.org/id/london-borough-council/sutton,London Borough of Sutton,18/09/0202,10014267,13.74,AMZNMKTPLAC,nr Management Promoting Ind / Int Prov Expenses,Health and Wellbeing,Miscellaneous Expenses,A49000
http://opendatacommunities.org/id/london-borough-council/sutton,London Borough of Sutton,18/09/0202,10014267,9.16,AMZNMKTPLAC,nr Management Promoting Ind / Int Prov Expenses,Health and Wellbeing,Miscellaneous Expenses,A49000
http://opendatacommunities.org/id/london-borough-council/sutton,London Borough of Sutton,18/09/0202,10014267,9.15,AMZNMKTPLAC,nr Management Promoting Ind / Int Prov Expenses,Health and Wellbeing,Miscellaneous Expenses,A49000
http://opendatacommunities.org/id/london-borough-council/sutton,London Borough of Sutton,18/09/0202,10014267,188.1,WWW.QHOTELS.CO.U,nr Management Promoting Ind / Int Prov Expenses,Health and Wellbeing,Miscellaneous Expenses,A49000
http://opendatacommunities.org/id/london-borough-council/sutton,London Borough of Sutton,16/09/0202,10014267,-56.14,TRAINLIN,nr Management Promoting Ind / Int Prov Expenses,Health and Wellbeing,Miscellaneous Expenses,A49000
http://opendatacommunities.org/id/london-borough-council/sutton,London Borough of Sutton,16/09/0202,10014267,-41.77,TRAINLIN,nr Management Promoting Ind / Int Prov Expenses,Health and Wellbeing,Miscellaneous Expenses,A49000
http://opendatacommunities.org/id/london-borough-council/sutton,London Borough of Sutton,15/09/0202,10014267,47.17,TRAINLIN,nr Management Promoting Ind / Int Prov Expenses,Health and Wellbeing,Miscellaneous Expenses,A49000
http://opendatacommunities.org/id/london-borough-council/sutton,London Borough of Sutton,15/09/0202,10014267,57.36,TRAINLIN,nr Management Promoting Ind / Int Prov Expenses,Health and Wellbeing,Miscellaneous Expenses,A49000
http://opendatacommunities.org/id/london-borough-council/sutton,London Borough of Sutton,15/09/0202,10014267,41.77,TRAINLIN,nr Management Promoting Ind / Int Prov Expenses,Health and Wellbeing,Miscellaneous Expenses,A49000
http://opendatacommunities.org/id/london-borough-council/sutton,London Borough of Sutton,21/09/0202,10014267,51.95,AMZNMKTPLAC,UPPLIES FOR CHILD GROUPS,Health and Wellbeing,Other Supplies & Services,A44291
http://opendatacommunities.org/id/london-borough-council/sutton,London Borough of Sutton,07/09/0202,10014267,163.33,IKEA LTD 144 CROYDON,ALLINGTON HUB SUPPLIES,Health and Wellbeing,Equipment And Materials Purchase,A40000
http://opendatacommunities.org/id/london-borough-council/sutton,London Borough of Sutton,03/09/0202,10014267,9.16,SPOTIFY P25864709,USIC FOR CEREMONIES,Health and Wellbeing,Subscriptions,A47010
http://opendatacommunities.org/id/london-borough-council/sutton,London Borough of Sutton,04/09/0202,10014267,100,GREGG,REGGS VOUCHERS FOR THE PEOPLE DIRECTORATE INDUCTION PROGRAMME,People's Services,Staff Development And Training,A15022
http://opendatacommunities.org/id/london-borough-council/sutton,London Borough of Sutton,18/09/0202,10014267,100,GREGG,REGGS VOUCHERS FOR THE PEOPLE DIRECTORATE INDUCTION PROGRAMME,People's Services,Staff Development And Training,A15022
http://opendatacommunities.org/id/london-borough-council/sutton,London Borough of Sutton,30/08/0202,10014267,159.9,ZOOM.US 888-799-966,UBSCRIPTION REQUIRED,People's Services,Subscriptions,A47010
http://opendatacommunities.org/id/london-borough-council/sutton,London Borough of Sutton,11/09/0202,10014267,"2,284.17",IKEA LTD SHOP ONLIN,TEMS NEEDED FOR A NEW ACCOMMODATION HOME,People's Services,Miscellaneous Expenses,A49000
http://opendatacommunities.org/id/london-borough-council/sutton,London Borough of Sutton,30/08/0202,10014267,30,AO RETAIL LIMITE,O PAYMENT,People's Services,Approved Lodgings,A61000
http://opendatacommunities.org/id/london-borough-council/sutton,London Borough of Sutton,29/08/0202,10014267,269,AO RETAIL LIMITE,O PAYMENT,People's Services,Approved Lodgings,A61000
http://opendatacommunities.org/id/london-borough-council/sutton,London Borough of Sutton,4519,10014267,151.44,EASYJE,CT MANAGEMENT TEAM EXPENSE,Resources,Miscellaneous Expenses,A49000
http://opendatacommunities.org/id/london-borough-council/sutton,London Borough of Sutton,4519,10014267,151.44,EASYJE,CT MANAGEMENT TEAM EXPENSE,Resources,Miscellaneous Expenses,A49000
http://opendatacommunities.org/id/london-borough-council/sutton,London Borough of Sutton,25/09/0202,10014267,4.79,POUNDLAND LT,efreshments Mayor's Reception 25.9.23,Resources,Hospitality,A46020
http://opendatacommunities.org/id/london-borough-council/sutton,London Borough of Sutton,22/09/0202,10014267,9.39,WM MORRISONS STOR,2.9.23 MAYORAL RECEPTION SUTTON GRAMMAR SCHOOL STUDENTS,Resources,Hospitality,A46020
http://opendatacommunities.org/id/london-borough-council/sutton,London Borough of Sutton,07/09/0202,10014267,61.4,SAINSBURYS SMKT,OOD FOR MAYORAL RECEPTION 25.9.23,Resources,Hospitality,A46020
http://opendatacommunities.org/id/london-borough-council/sutton,London Borough of Sutton,11/09/0202,10014267,101.5,DMN/THEGREYHOUN,OLICY AND TRANSFORMATION AWAY DAY - TEAM BUILDING ON 20TH OCTOBER 23,Resources,Hire of Rooms,A22010
http://opendatacommunities.org/id/london-borough-council/sutton,London Borough of Sutton,21/09/0202,10014267,252.68,MAILCHIM,HP MAILCHIMP SUBSCRIPTION RECHARGE TO COST CODE  C63500 A47010,Resources,Publicity,A44266
http://opendatacommunities.org/id/london-borough-council/sutton,London Borough of Sutton,14/09/0202,10014267,436.58,MAILCHIM,UBSCRIPTION,Resources,Publicity,A44266
http://opendatacommunities.org/id/london-borough-council/sutton,London Borough of Sutton,21/09/0202,10014267,100,PAYPAL  LGCOMMS201,GCOMMS ACADEMY,Resources,Miscellaneous Expenses,A49000
http://opendatacommunities.org/id/london-borough-council/sutton,London Borough of Sutton,07/09/0202,10014267,223,WWW.CIPS.OR,IPS PROFESSIONAL MEMBERSHIP FEES FOR SKH,Resources,Staff Development And Training,A15022
http://opendatacommunities.org/id/london-borough-council/sutton,London Borough of Sutton,15/09/0202,10014267,84,PAYPAL  DIGITALINS,L&G,Resources,"Grants, Contributions & Donations",A47005
http://opendatacommunities.org/id/london-borough-council/sutton,London Borough of Sutton,14/09/0202,10014267,367.95,WWW.ARGOS.CO.U,L&G,Resources,"Grants, Contributions & Donations",A47005
http://opendatacommunities.org/id/london-borough-council/sutton,London Borough of Sutton,05/09/0202,10014267,20,OYSTER ONLIN,L&G,Resources,"Grants, Contributions & Donations",A47005
http://opendatacommunities.org/id/london-borough-council/sutton,London Borough of Sutton,22/09/0202,10014267,50.58,PAYPAL  DIGITALINS,L&G,Resources,"Grants, Contributions & Donations",A47005
http://opendatacommunities.org/id/london-borough-council/sutton,London Borough of Sutton,20/09/0202,10014267,50.03,PAYPAL  DIGITALINS,L&G,Resources,"Grants, Contributions & Donations",A47005
http://opendatacommunities.org/id/london-borough-council/sutton,London Borough of Sutton,31/08/0202,10014267,360,EB  TREE LAW SUMMER S,B  TREE LAW SUMMER SE,Resources,Staff Development And Training,A15022
http://opendatacommunities.org/id/london-borough-council/sutton,London Borough of Sutton,05/09/0202,10014267,49.98,AMZNMKTPLAC,ARDENING ITEMS REQUIRED FOR THE INNOVATION GATEWAY,Resources,Equipment And Materials Purchase,A40000
http://opendatacommunities.org/id/london-borough-council/sutton,London Borough of Sutton,30/08/0202,10014267,19.13,AMZNMKTPLAC,TEMS REQUIRED UNDER H&S,Resources,Health & Safety Equipment,A40080
http://opendatacommunities.org/id/london-borough-council/sutton,London Borough of Sutton,13/09/0202,10014267,30.03,AMZNMKTPLACE AMAZON.C,OSPITALITY/CATERING,Resources,Catering,A41000
http://opendatacommunities.org/id/london-borough-council/sutton,London Borough of Sutton,14/09/0202,10014267,10.82,AMZNMKTPLACE AMAZON.C,TATIONERY ITEMS FOR THE INNOVATION GATEWAY,Resources,Stationery,A43015
http://opendatacommunities.org/id/london-borough-council/sutton,London Borough of Sutton,14/09/0202,10014267,25.95,DAWSON,EY CUTTING OF MAYOR'S PARLOUR/KITCHEN AND SECRETARY'S OFFICE,Resources,Equipment And Materials Repairs & Maintenance,A40051
http://opendatacommunities.org/id/london-borough-council/sutton,London Borough of Sutton,25/09/0202,10014267,152.92,DMN/ELECTRICSHUFFLELO,CTIVITY FOR YOUNG PEOPLE,People's Services,Miscellaneous Expenses,A49000
http://opendatacommunities.org/id/london-borough-council/sutton,London Borough of Sutton,30/08/0202,10014267,157.5,DMN/ELECTRICSHUFFLELO,LECTRIC SHUFFLE PAYMENT,People's Services,Miscellaneous Expenses,A49000
http://opendatacommunities.org/id/london-borough-council/sutton,London Borough of Sutton,29/08/0202,10014267,210,TRAQ MOTOR RACIN,O KARTING ACTIVITY PAYMENT FOR CLIENT,People's Services,Client Activities,A56028
http://opendatacommunities.org/id/london-borough-council/sutton,London Borough of Sutton,06/09/0202,10014267,128.32,JD SPORTS FASHION PL,IFT FOR A YOUNG PERSON,People's Services,Miscellaneous Expenses,A49000
http://opendatacommunities.org/id/london-borough-council/sutton,London Borough of Sutton,21/09/0202,10014267,106.99,MATALAN ECO,LOTHES ORDER FOR YOUNG PERSON,People's Services,Miscellaneous Expenses,A49000
http://opendatacommunities.org/id/london-borough-council/sutton,London Borough of Sutton,21/09/0202,10014267,72.95,NEXT DIRECTOR,LOTHES ORDER FOR YOUNG PERSON,People's Services,Miscellaneous Expenses,A49000
http://opendatacommunities.org/id/london-borough-council/sutton,London Borough of Sutton,21/09/0202,10014267,372.64,BDC TICKET PURCHAS,CTIVITY FOR YOUNG PEOPLE,People's Services,Miscellaneous Expenses,A49000
http://opendatacommunities.org/id/london-borough-council/sutton,London Borough of Sutton,14/09/0202,10014267,85,POST OFFICE COUNTE,OST OFFICE PASSPORT PAYMENT,People's Services,Equipment And Materials Purchase,A40000
http://opendatacommunities.org/id/london-borough-council/sutton,London Borough of Sutton,14/09/0202,10014267,85,POST OFFICE COUNTE,OST OFFICE PASSPORT PAYMENT,People's Services,Equipment And Materials Purchase,A40000
http://opendatacommunities.org/id/london-borough-council/sutton,London Borough of Sutton,06/09/0202,10014267,1.87,AMZNMKTPLAC,PLIT - PICCADILLY GREETINGS GROUP LTD DINOSAUR BIRTHDAY CARD,People's Services,Miscellaneous Expenses,A49000
http://opendatacommunities.org/id/london-borough-council/sutton,London Borough of Sutton,20/09/0202,10014267,110.47,TENPIN.CO.U,OWLING FOR A CONTACT SESSION,People's Services,Miscellaneous Expenses,A49000
http://opendatacommunities.org/id/london-borough-council/sutton,London Borough of Sutton,22/09/0202,10014267,11,SAINSBURYS S/MKT,C BDAY,People's Services,Miscellaneous Expenses,A49000
http://opendatacommunities.org/id/london-borough-council/sutton,London Borough of Sutton,08/09/0202,10014267,90.61,WALLINGTON FOOD CENTR,UAD ACT,People's Services,Miscellaneous Expenses,A49000
http://opendatacommunities.org/id/london-borough-council/sutton,London Borough of Sutton,07/09/0202,10014267,18.98,KFC THE COLONNADE,G ACTIVITY,People's Services,Miscellaneous Expenses,A49000
http://opendatacommunities.org/id/london-borough-council/sutton,London Borough of Sutton,07/09/0202,10014267,25,BROADWAY COMPUTER,R,People's Services,Miscellaneous Expenses,A49000
http://opendatacommunities.org/id/london-borough-council/sutton,London Borough of Sutton,06/09/0202,10014267,17.96,THE FLYING CLU,R CELEBRATION,People's Services,Miscellaneous Expenses,A49000
http://opendatacommunities.org/id/london-borough-council/sutton,London Borough of Sutton,06/09/0202,10014267,4.19,THE FLYING CLU,R CELEBRATION,People's Services,Miscellaneous Expenses,A49000
http://opendatacommunities.org/id/london-borough-council/sutton,London Borough of Sutton,21/09/0202,10014267,21,WWW.WIGHTLINK.CO.U,ERRY PAYMENT FOR CLIENT,People's Services,C.C.A Travel & Subsistance,A61010
http://opendatacommunities.org/id/london-borough-council/sutton,London Borough of Sutton,06/09/0202,10014267,9.8,AMZNMKTPLAC,"PLIT - LIMITED EDITION TRANSFORMERS 2.5"" MINI FIGURES",People's Services,C.C.A Travel & Subsistance,A61010
http://opendatacommunities.org/id/london-borough-council/sutton,London Borough of Sutton,06/09/0202,10014267,10.99,AMZNMKTPLAC,"PLIT - IQEPXTGO TRANSFORMERS TOYS, AUTOBOTS TOYS",People's Services,C.C.A Travel & Subsistance,A61010
http://opendatacommunities.org/id/london-borough-council/sutton,London Borough of Sutton,05/09/0202,10014267,17.5,WWW.WIGHTLINK.CO.U,ERRY NEEDED FOR SW,People's Services,C.C.A Travel & Subsistance,A61010
http://opendatacommunities.org/id/london-borough-council/sutton,London Borough of Sutton,30/08/0202,10014267,87.95,AAA TAXISLT,AXI PAYMENT FOR CLIENT,People's Services,C.C.A Travel & Subsistance,A61010
http://opendatacommunities.org/id/london-borough-council/sutton,London Borough of Sutton,13/09/0202,10014267,13,WWW.BETTER.ORG.U,ETTER GYM PAYMENT - SOFT PLAY FOR CLIENT,People's Services,Client Care/Assistance,A61011
http://opendatacommunities.org/id/london-borough-council/sutton,London Borough of Sutton,31/08/0202,10014267,878,DFS TRADING LIMITE,R SETTING UP,People's Services,Set Up Costs - Children Leaving Care,A61021
http://opendatacommunities.org/id/london-borough-council/sutton,London Borough of Sutton,30/08/0202,10014267,339,IKEA LTD SHOP ONLIN,R SETTING UP,People's Services,Set Up Costs - Children Leaving Care,A61021
http://opendatacommunities.org/id/london-borough-council/sutton,London Borough of Sutton,30/08/0202,10014267,554,IKEA LTD SHOP ONLIN,R SETTING UP,People's Services,Set Up Costs - Children Leaving Care,A61021
http://opendatacommunities.org/id/london-borough-council/sutton,London Borough of Sutton,22/09/0202,10014267,5.49,BRITISH HEART FOUNDAT,G SET UP,People's Services,Set Up Costs - Children Leaving Care,A61021
http://opendatacommunities.org/id/london-borough-council/sutton,London Borough of Sutton,01/09/0202,10014267,269.99,WWW.ARGOS.CO.U,RGOS TV PAYMENT,People's Services,Set Up Costs - Children Leaving Care,A61021
http://opendatacommunities.org/id/london-borough-council/sutton,London Borough of Sutton,12/09/0202,10014267,33.5,ASDA STORES 451,B EMERGENCY MOVE,People's Services,Miscellaneous Expenses,A49000
http://opendatacommunities.org/id/london-borough-council/sutton,London Borough of Sutton,21/09/0202,10014267,58,EASYJE,ASYJET PAYMENT FOR CLIENT,People's Services,C.C.A Travel & Subsistance,A61010
http://opendatacommunities.org/id/london-borough-council/sutton,London Borough of Sutton,21/09/0202,10014267,61,EASYJE,ASYJET PAYMENT FOR CLIENT,People's Services,C.C.A Travel & Subsistance,A61010
http://opendatacommunities.org/id/london-borough-council/sutton,London Borough of Sutton,07/09/0202,10014267,59.59,AMZNMKTPLACE AMAZON.C,V AND UNIT FOR A LEAVING CARE YOUNG PERSON,People's Services,Set Up Costs - Children Leaving Care,A61021
http://opendatacommunities.org/id/london-borough-council/sutton,London Borough of Sutton,07/09/0202,10014267,25.59,AMZNMKTPLACE AMAZON.C,TEM NEEDED FOR A YOUNG PERSON,People's Services,Set Up Costs - Children Leaving Care,A61021
http://opendatacommunities.org/id/london-borough-council/sutton,London Borough of Sutton,05/09/0202,10014267,715,IKEA LTD SHOP ONLIN,TEMS NEEDED FOR YOUNG PERSON,People's Services,Miscellaneous Expenses,A49000
http://opendatacommunities.org/id/london-borough-council/sutton,London Borough of Sutton,21/09/0202,10014267,74.05,ASDA GROCERIES ONLIN,OOD SHOPPING FOR WILLOW RISE,People's Services,Miscellaneous Expenses,A49000
http://opendatacommunities.org/id/london-borough-council/sutton,London Borough of Sutton,21/09/0202,10014267,-0.6,ASDA GROCERIES ONLIN,OOD SHOPPING FOR WILLOW RISE,People's Services,Miscellaneous Expenses,A49000
http://opendatacommunities.org/id/london-borough-council/sutton,London Borough of Sutton,21/09/0202,10014267,18.74,HPI INSTANT INK U,NK COSTS FOR WILLOW RISE,People's Services,Miscellaneous Expenses,A49000
http://opendatacommunities.org/id/london-borough-council/sutton,London Borough of Sutton,13/09/0202,10014267,17.97,AMZNMKTPLAC,TEM NEEDED FOR THE WILLOW RISE CHILDRENS HOME,People's Services,Miscellaneous Expenses,A49000
http://opendatacommunities.org/id/london-borough-council/sutton,London Borough of Sutton,13/09/0202,10014267,4.99,AMZNMKTPLAC,TEM NEEDED FOR THE WILLOW RISE CHILDRENS HOME,People's Services,Miscellaneous Expenses,A49000
http://opendatacommunities.org/id/london-borough-council/sutton,London Borough of Sutton,10/09/0202,10014267,33.34,AMZNMKTPLACE AMAZON.C,PLIT - RUSSELL HOBBS 19750 RICE COOKER AND STEAMER,People's Services,Miscellaneous Expenses,A49000
http://opendatacommunities.org/id/london-borough-council/sutton,London Borough of Sutton,10/09/0202,10014267,13.99,AMZNMKTPLACE AMAZON.C,PLIT - SALTER 517 SSCR FRIDGE FREEZER THERMOMETER,People's Services,Miscellaneous Expenses,A49000
http://opendatacommunities.org/id/london-borough-council/sutton,London Borough of Sutton,10/09/0202,10014267,9.05,AMZNMKTPLACE AMAZON.C,"PLIT - AMAZON BASICS 12-PIECE COLOURED KNIFE SET, ASSORTED",People's Services,Miscellaneous Expenses,A49000
http://opendatacommunities.org/id/london-borough-council/sutton,London Borough of Sutton,06/09/0202,10014267,38.97,AMZNMKTPLACE AMAZON.C,PLIT - CIF PROFESSIONAL ALL PURPOSE CLEANER LEMON 5L,People's Services,Miscellaneous Expenses,A49000
http://opendatacommunities.org/id/london-borough-council/sutton,London Borough of Sutton,31/08/0202,10014267,81.45,ASDA GROCERIES ONLIN,SDA FOOD PAYMENT,People's Services,Miscellaneous Expenses,A49000
http://opendatacommunities.org/id/london-borough-council/sutton,London Borough of Sutton,31/08/0202,10014267,-5.41,ASDA GROCERIES ONLIN,SDA FOOD REFUND,People's Services,Miscellaneous Expenses,A49000
http://opendatacommunities.org/id/london-borough-council/sutton,London Borough of Sutton,07/09/0202,10014267,34.76,AMZNMKTPLACE AMAZON.C,PLIT - PERSIL 3 IN 1 NON BIO WASHING CAPSULES,People's Services,Miscellaneous Expenses,A49000
http://opendatacommunities.org/id/london-borough-council/sutton,London Borough of Sutton,07/09/0202,10014267,8.99,AMZNMKTPLACE AMAZON.C,"PLIT - ZHEZHE 240PCS, TRASH BAGS",People's Services,Miscellaneous Expenses,A49000
http://opendatacommunities.org/id/london-borough-council/sutton,London Borough of Sutton,07/09/0202,10014267,111.71,ASDA GROCERIES ONLIN,OOD SHOPPING FOR WILLOW RISE CHILDRENS HOME,People's Services,Miscellaneous Expenses,A49000
http://opendatacommunities.org/id/london-borough-council/sutton,London Borough of Sutton,07/09/0202,10014267,-2.58,ASDA GROCERIES ONLIN,OOD SHOPPING FOR WILLOW RISE CHILDRENS HOME,People's Services,Miscellaneous Expenses,A49000
http://opendatacommunities.org/id/london-borough-council/sutton,London Borough of Sutton,10/09/0202,10014267,16,AMZNMKTPLACE AMAZON.C,PLIT - DETTOL SURFACE CLEANSER POUCH REFILL 1.2L X 4,People's Services,Miscellaneous Expenses,A49000
http://opendatacommunities.org/id/london-borough-council/sutton,London Borough of Sutton,10/09/0202,10014267,11.9,AMZNMKTPLACE AMAZON.C,PLIT - MAGNETIC FLY SCREENS FOR DOORS,People's Services,Miscellaneous Expenses,A49000
http://opendatacommunities.org/id/london-borough-council/sutton,London Borough of Sutton,10/09/0202,10014267,39.99,AMZNMKTPLACE AMAZON.C,PLIT - DEKO 100 PIECE HOME REPAIR TOOL SE,People's Services,Miscellaneous Expenses,A49000
http://opendatacommunities.org/id/london-borough-council/sutton,London Borough of Sutton,10/09/0202,10014267,25,AMZNMKTPLACE AMAZON.C,PLIT - FLASH KITCHEN DEGREASER CLEANING SPRAY,People's Services,Miscellaneous Expenses,A49000
http://opendatacommunities.org/id/london-borough-council/sutton,London Borough of Sutton,18/09/0202,10014267,197.94,WWW.ARGOS.CO.U,RGOS PAYMENT - TV FOR CLIENT,People's Services,Miscellaneous Expenses,A49000
http://opendatacommunities.org/id/london-borough-council/sutton,London Borough of Sutton,19/09/0202,10014267,14.98,AMZNMKTPLAC,PLIT - UNIVERSAL REMOTE CONTROL,People's Services,Miscellaneous Expenses,A49000
http://opendatacommunities.org/id/london-borough-council/sutton,London Borough of Sutton,18/09/0202,10014267,21.22,AMZNMKTPLAC,PLIT - HIGH GAIN FREEVIEW TV AERIAL,People's Services,Miscellaneous Expenses,A49000
http://opendatacommunities.org/id/london-borough-council/sutton,London Borough of Sutton,18/09/0202,10014267,-1.79,AMZNMKTPLAC,ALANCING ENTRY AMOUNT,People's Services,Miscellaneous Expenses,A49000
http://opendatacommunities.org/id/london-borough-council/sutton,London Borough of Sutton,20/09/0202,10014267,3.32,AMZNMKTPLAC,PLIT - BIC HIGHLIGHTER PEN,People's Services,Miscellaneous Expenses,A49000
http://opendatacommunities.org/id/london-borough-council/sutton,London Borough of Sutton,20/09/0202,10014267,4.16,AMZNMKTPLAC,PLIT - ABEIER WHITEBOARD PENS,People's Services,Miscellaneous Expenses,A49000
http://opendatacommunities.org/id/london-borough-council/sutton,London Borough of Sutton,20/09/0202,10014267,21.22,AMZNMKTPLAC,PLIT - LEPRO LED STRIP LIGHT 5M,People's Services,Miscellaneous Expenses,A49000
http://opendatacommunities.org/id/london-borough-council/sutton,London Borough of Sutton,20/09/0202,10014267,44.99,AMZNMKTPLAC,PLIT - DOLLAR BOSS MAGNETIC WHITEBOARD,People's Services,Miscellaneous Expenses,A49000
http://opendatacommunities.org/id/london-borough-council/sutton,London Borough of Sutton,14/09/0202,10014267,143.99,ASDA GROCERIES ONLIN,SDA SHOPPING PAYMENT,People's Services,Miscellaneous Expenses,A49000
http://opendatacommunities.org/id/london-borough-council/sutton,London Borough of Sutton,14/09/0202,10014267,-3.49,ASDA GROCERIES ONLIN,SDA SHOPPING PAYMENT REFUND,People's Services,Miscellaneous Expenses,A49000
http://opendatacommunities.org/id/london-borough-council/sutton,London Borough of Sutton,06/09/0202,10014267,18.99,AMZNMKTPLACE AMAZON.C,PLIT - FAIRY PROFESSIONAL WASHING UP LIQUID ORIGINAL 5L,People's Services,Miscellaneous Expenses,A49000
http://opendatacommunities.org/id/london-borough-council/sutton,London Borough of Sutton,06/09/0202,10014267,15.6,AMZNMKTPLACE AMAZON.C,PLIT - HARPIC ACTIVE FRESH TOILET CLEANER GEL,People's Services,Miscellaneous Expenses,A49000
http://opendatacommunities.org/id/london-borough-council/sutton,London Borough of Sutton,06/09/0202,10014267,21.2,AMZNMKTPLACE AMAZON.C,PLIT - SALTER EK2017T ELECTRIC XL DEEP FILL SANDWICH TOASTER,People's Services,Miscellaneous Expenses,A49000
http://opendatacommunities.org/id/london-borough-council/sutton,London Borough of Sutton,13/09/0202,10014267,0.72,FOREIGN EXCHANG,XCHANGE FEE FOR THE ITEMS FOR YP,People's Services,Miscellaneous Expenses,A49000
http://opendatacommunities.org/id/london-borough-council/sutton,London Borough of Sutton,12/09/0202,10014267,26.05,SP MAKESHIP STOR,TEMS NEEDED FOR A YOUNG PERSON,People's Services,Miscellaneous Expenses,A49000
http://opendatacommunities.org/id/london-borough-council/sutton,London Borough of Sutton,17/09/0202,10014267,15.99,NETFLIX.CO,ETFLIX PAYMENT,People's Services,Miscellaneous Expenses,A49000
http://opendatacommunities.org/id/london-borough-council/sutton,London Borough of Sutton,03/09/0202,10014267,7.99,AMZNMKTPLAC,,People's Services,Miscellaneous Expenses,A49000
http://opendatacommunities.org/id/london-borough-council/sutton,London Borough of Sutton,03/09/0202,10014267,20.78,AMZNMKTPLAC,"PLIT - AIDEA MICROFIBRE CLOTH PACK OF 50, MULTIFUNCTIONAL REUSABLE CLEANING CLOTHS",People's Services,Miscellaneous Expenses,A49000
http://opendatacommunities.org/id/london-borough-council/sutton,London Borough of Sutton,03/09/0202,10014267,2.09,AMZNMKTPLAC,PLIT - A1SONIC GAS METER BOX KEY TRIANGULAR GAS ELECTRIC UTILITY METER BOX KEY BLACK PLASTIC Key,People's Services,Miscellaneous Expenses,A49000
http://opendatacommunities.org/id/london-borough-council/sutton,London Borough of Sutton,01/09/0202,10014267,28.99,AMZNMKTPLAC,PLIT - FARLA MEDICAL MEDIHANDS NITRILE GLOVES,People's Services,Miscellaneous Expenses,A49000
http://opendatacommunities.org/id/london-borough-council/sutton,London Borough of Sutton,07/09/0202,10014267,19.62,AMZNMKTPLACE AMAZON.C,PLIT - LENOR FABRIC CONDITIONER,People's Services,Miscellaneous Expenses,A49000
http://opendatacommunities.org/id/london-borough-council/sutton,London Borough of Sutton,07/09/0202,10014267,17.45,AMZNMKTPLACE AMAZON.C,PLIT - 200 X AURA ECO FRIENDLY HOUSEHOLD BLACK REFUSE SACKS BIN LINERS,People's Services,Miscellaneous Expenses,A49000
http://opendatacommunities.org/id/london-borough-council/sutton,London Borough of Sutton,05/09/0202,10014267,28.6,AMZNMKTPLACE AMAZON.C,PLIT - DETTOL ALL-IN-ONE DISINFECTANT SPRAY CRISP LINEN,People's Services,Miscellaneous Expenses,A49000
http://opendatacommunities.org/id/london-borough-council/sutton,London Borough of Sutton,03/09/0202,10014267,9.98,AMZNMKTPLAC,PLIT - TONYG-P 20 PACK METAL CURTAIN RINGS WITH PLASTIC CURTAIN HOOKS,People's Services,Miscellaneous Expenses,A49000
http://opendatacommunities.org/id/london-borough-council/sutton,London Borough of Sutton,03/09/0202,10014267,11.99,AMZNMKTPLAC,DISPOSABLE - BOX OF 100,People's Services,Miscellaneous Expenses,A49000
http://opendatacommunities.org/id/london-borough-council/sutton,London Borough of Sutton,21/09/0202,10014267,24.99,AMZNMKTPLAC,PLIT - OZMIC GREY RUGS FOR LIVING ROOM,People's Services,Miscellaneous Expenses,A49000
http://opendatacommunities.org/id/london-borough-council/sutton,London Borough of Sutton,18/09/0202,10014267,63.33,COSTCO ONLINE UK LIMI,OSTCO ORDER OF MATERIALS,People's Services,Miscellaneous Expenses,A49000
http://opendatacommunities.org/id/london-borough-council/sutton,London Borough of Sutton,17/09/0202,10014267,10.07,AMZNMKTPLAC,PLIT - HIGH GAIN FREEVIEW TV AERIAL,People's Services,Miscellaneous Expenses,A49000
http://opendatacommunities.org/id/london-borough-council/sutton,London Borough of Sutton,17/09/0202,10014267,-3.6,AMZNMKTPLAC,ALANCING ENTRY AMOUNT,People's Services,Miscellaneous Expenses,A49000
http://opendatacommunities.org/id/london-borough-council/sutton,London Borough of Sutton,16/09/0202,10014267,7.49,AMZNMKTPLAC,PLIT - UNIVERSAL REMOTE CONTROL FOR HITACHI TV,People's Services,Miscellaneous Expenses,A49000
http://opendatacommunities.org/id/london-borough-council/sutton,London Borough of Sutton,04/09/0202,10014267,62.5,2MAA040064831 TD E-PM,OME OFFICE APPLICATION,People's Services,Miscellaneous Expenses,A49000
http://opendatacommunities.org/id/london-borough-council/sutton,London Borough of Sutton,08/09/0202,10014267,309,AMZNMKTPLACE AMAZON.C,ETTING UP ALLOWANCE FOR A LEAVING CARE YOUNG PERSON,People's Services,Set Up Costs - Children Leaving Care,A61021
http://opendatacommunities.org/id/london-borough-council/sutton,London Borough of Sutton,18/09/0202,10014267,140.98,WWW.ARGOS.CO.U,RGOS PAYMENT FOR KITCHEN EQUIPMENT,People's Services,Set Up Costs - Children Leaving Care,A61021
http://opendatacommunities.org/id/london-borough-council/sutton,London Borough of Sutton,18/09/0202,10014267,399.98,B&Q MARKETPLAC,&Q PAYMENT BED PAYMENT,People's Services,Client Care/Assistance,A61011
http://opendatacommunities.org/id/london-borough-council/sutton,London Borough of Sutton,14/09/0202,10014267,568.58,TRAVELODG,RAVELODGE HOTEL PAYMENT FOR CLIENT,People's Services,Client Care/Assistance,A61011
http://opendatacommunities.org/id/london-borough-council/sutton,London Borough of Sutton,22/09/0202,10014267,303.42,TRAVELODG,OTEL NEEDED FOR CLIENT,People's Services,Client Care/Assistance,A61011
http://opendatacommunities.org/id/london-borough-council/sutton,London Borough of Sutton,08/09/0202,10014267,551.59,TRAVELODG,OTEL NEEDED FOR CLIENT,People's Services,Client Care/Assistance,A61011
http://opendatacommunities.org/id/london-borough-council/sutton,London Borough of Sutton,14/09/0202,10014267,375.95,WWW.ARGOS.CO.U,RGOS PAYMENT - BED FOR CLIENT,People's Services,Client Care/Assistance,A61011
http://opendatacommunities.org/id/london-borough-council/sutton,London Borough of Sutton,04/09/0202,10014267,272.71,PREMIER IN,OTEL NEEDED FOR A CLIENT,People's Services,Client Care/Assistance,A61011
http://opendatacommunities.org/id/london-borough-council/sutton,London Borough of Sutton,31/08/0202,10014267,80.75,PREMIER IN,OTEL PAYMENT FOR CLIENT,People's Services,Client Care/Assistance,A61011
http://opendatacommunities.org/id/london-borough-council/sutton,London Borough of Sutton,07/09/0202,10014267,159,TVLICENSING.CO.U,V LICENSE FOR YP ACCOMMODATION,People's Services,Miscellaneous Expenses,A49000
http://opendatacommunities.org/id/london-borough-council/sutton,London Borough of Sutton,07/09/0202,10014267,159,TVLICENSING.CO.U,V LICENSE FOR YP ACCOMMODATION,People's Services,Miscellaneous Expenses,A49000
http://opendatacommunities.org/id/london-borough-council/sutton,London Borough of Sutton,07/09/0202,10014267,159,TVLICENSING.CO.U,V LICENSE FOR YP ACCOMMODATION,People's Services,Miscellaneous Expenses,A49000
http://opendatacommunities.org/id/london-borough-council/sutton,London Borough of Sutton,07/09/0202,10014267,159,TVLICENSING.CO.U,V LICENSE FOR YP ACCOMMODATION,People's Services,Miscellaneous Expenses,A49000
http://opendatacommunities.org/id/london-borough-council/sutton,London Borough of Sutton,30/08/0202,10014267,-0.1,ASDA GROCERIES ONLIN,SDA PAYMENT REFUND,People's Services,Miscellaneous Expenses,A49000
http://opendatacommunities.org/id/london-borough-council/sutton,London Borough of Sutton,30/08/0202,10014267,26.97,ASDA GROCERIES ONLIN,SDA FOOD PAYMENT,People's Services,Miscellaneous Expenses,A49000
http://opendatacommunities.org/id/london-borough-council/sutton,London Borough of Sutton,07/09/0202,10014267,159,TVLICENSING.CO.U,V LICENSE FOR YP ACCOMMODATION,People's Services,Miscellaneous Expenses,A49000
http://opendatacommunities.org/id/london-borough-council/sutton,London Borough of Sutton,15/09/0202,10014267,224.98,EASYJE,LIGHT FOR IRO,People's Services,Miscellaneous Expenses,A49000
http://opendatacommunities.org/id/london-borough-council/sutton,London Borough of Sutton,15/09/0202,10014267,64.17,PREMIER IN,CCOMMODATION FOR IRO OFFICER.,People's Services,Miscellaneous Expenses,A49000
http://opendatacommunities.org/id/london-borough-council/sutton,London Borough of Sutton,19/09/0202,10014267,15,MARKS&SPENCER PL,&S E-VOUCHER FOR SERVICE USER REQUESTED BY ROSEMARY - SENSORY AWARENESS TRAINING GUEST SPEAKER,People's Services,Staff Development And Training,A15022
http://opendatacommunities.org/id/london-borough-council/sutton,London Borough of Sutton,13/09/0202,10014267,431.04,GOVERNMENT EVENT,"""REDACTED - PERSONAL DATA"" - WORKING IN PARTNERSHIP TO SAFEGUARD CHILDREN CONFERENCE 28TH FEBRUARY 2024",People's Services,Staff Development And Training,A15022
http://opendatacommunities.org/id/london-borough-council/sutton,London Borough of Sutton,08/09/0202,10014267,120,ACCESS INDEPENDENT  #,"""REDACTED - PERSONAL DATA"" MAJOR ADAPTATIONS IN OCCUPATIONAL THERAPY PRACTICE 1 NOVEMBER & 15 NOVEMBER 2023",People's Services,Staff Development And Training,A15022
http://opendatacommunities.org/id/london-borough-council/sutton,London Borough of Sutton,31/08/0202,10014267,78,PAYPAL  CENTRALCON,"""REDACTED - PERSONAL DATA"" EXPLORING INTERNATIONAL PLACEMENTS FOR LOOKED AFTER CHILDREN WITH FAMILY OVERSEAS - CENTRAL CONFERENCE CONSULTANTS LTD OCTOBER 2023",People's Services,Staff Development And Training,A15022
http://opendatacommunities.org/id/london-borough-council/sutton,London Borough of Sutton,22/09/0202,10014267,106.5,SAINSBURYS SMKT,AINSBURYS ASYE INDUCTION LUNCH ON 28/09/23 ORDERED ONLINE,People's Services,Staff Development And Training,A15022
http://opendatacommunities.org/id/london-borough-council/sutton,London Borough of Sutton,08/09/0202,10014267,75,WALLINGTON CARS & COU,AXI NEEDED FOR YP,People's Services,C.C.A Travel & Subsistance,A61010
http://opendatacommunities.org/id/london-borough-council/sutton,London Borough of Sutton,01/09/0202,10014267,180,WALLINGTON CARS & COU,AXI NEEDED FOR YOUNG PERSON,People's Services,C.C.A Travel & Subsistance,A61010
http://opendatacommunities.org/id/london-borough-council/sutton,London Borough of Sutton,06/09/0202,10014267,566.25,IKEA LTD SHOP ONLIN,TEMS NEEDED FOR QUAD,People's Services,Furniture - Purchase,A40015
http://opendatacommunities.org/id/london-borough-council/sutton,London Borough of Sutton,22/09/0202,10014267,8,WWW.NATURALSIGNS.CO.U,IGN FOR THE QUAD,People's Services,Miscellaneous Expenses,A49000
http://opendatacommunities.org/id/london-borough-council/sutton,London Borough of Sutton,29/08/0202,10014267,408.89,B&Q MARKETPLAC,"&Q BED, BEDDING AND MATTRESS PAYMENT",People's Services,Client Care/Assistance,A61011
http://opendatacommunities.org/id/london-borough-council/sutton,London Borough of Sutton,05/09/0202,10014267,112.37,STORAGEMART UK #521,TORAGE FOR CLIENT,People's Services,Storage And Archiving Services,A44085
http://opendatacommunities.org/id/london-borough-council/sutton,London Borough of Sutton,14/09/0202,10014267,149,DUNELM SOFTFURNISHING,ESK FOR YOUNG PERSON,People's Services,Equipment,A61013
http://opendatacommunities.org/id/london-borough-council/sutton,London Borough of Sutton,08/09/0202,10014267,"1,466.67",HOTEL IBI,OTEL NEEDED FOR CLIENT,People's Services,Client Care/Assistance,A61011
http://opendatacommunities.org/id/london-borough-council/sutton,London Borough of Sutton,15/09/0202,10014267,963.75,HOTEL IBI,OTEL NEEDED FOR CLIENT,People's Services,Client Care/Assistance,A61011
http://opendatacommunities.org/id/london-borough-council/sutton,London Borough of Sutton,18/09/0202,10014267,11,SUTTON REGISTRY OFFIC,"EATH CERT""REDACTED - PERSONAL DATA""",Resources,Funeral Expenses,A44220
http://opendatacommunities.org/id/london-borough-council/sutton,London Borough of Sutton,18/09/0202,10014267,11,SUTTON REGISTRY OFFIC,"EATH CERT ""REDACTED - PERSONAL DATA""",Resources,Funeral Expenses,A44220
http://opendatacommunities.org/id/london-borough-council/sutton,London Borough of Sutton,30/08/0202,10014267,100,BBL DESIG,UNERALLWREATHSLEAVERMADDEN,Resources,Funeral Expenses,A44220
http://opendatacommunities.org/id/london-borough-council/sutton,London Borough of Sutton,07/09/0202,10014267,144,THOMSON REUTERS UK LT,CT INTERMEDIATE BUILDING CONTRACT,Development Growth and Regeneration,Other Capital Expenditure,C20002
http://opendatacommunities.org/id/london-borough-council/sutton,London Borough of Sutton,15/09/0202,10014267,208.17,AMZNMKTPLAC,URCHASE OF KENSINGTON LOCKS FOR BECC EQUIPMENT,Environment Housing and Neighbourhoods,Other Capital Expenditure,C20002
http://opendatacommunities.org/id/london-borough-council/sutton,London Borough of Sutton,21/09/0202,10014267,20,ISTOCK.CO,STOCK IMAGE FOR ASSISTED TRAVEL COMMS,People's Services,Publicity,A44266
http://opendatacommunities.org/id/london-borough-council/sutton,London Borough of Sutton,21/09/0202,10014267,7,ISTOCK.CO,STOCK IMAGE FOR ASSISTED TRAVEL COMMS,People's Services,Publicity,A44266
http://opendatacommunities.org/id/london-borough-council/sutton,London Borough of Sutton,31/08/0202,10014267,20,MY.MORRISONS.CO,TAFF BRIEFING DAY 060923 72.60 INC DEPOSIT INFO,Health and Wellbeing,Catering,A41000
http://opendatacommunities.org/id/london-borough-council/sutton,London Borough of Sutton,19/09/0202,10014267,8.34,WM MORRISONS STOR,FSTED & GOV SUPPLIES MORRISONS 8.34 190923,Health and Wellbeing,Catering,A41000
http://opendatacommunities.org/id/london-borough-council/sutton,London Borough of Sutton,06/09/0202,10014267,2.9,POUNDLAND LTD - 121,OUNDLAND STAFF BRIEFING MILK 2.90 060923,Health and Wellbeing,Catering,A41000
http://opendatacommunities.org/id/london-borough-council/sutton,London Borough of Sutton,06/09/0202,10014267,72.6,WM MORRISONS STOR,TAFF BRIEFING DAY 060923 72.60 INC DEPOSIT INFO,Health and Wellbeing,Catering,A41000
http://opendatacommunities.org/id/london-borough-council/sutton,London Borough of Sutton,05/09/0202,10014267,10,MARKS&SPENCER PLC SAC,TAFF BRIEFING DAY M&S 0609023 10.00,Health and Wellbeing,Catering,A41000
http://opendatacommunities.org/id/london-borough-council/sutton,London Borough of Sutton,05/09/0202,10014267,69.33,WM MORRISONS STOR,TAFF BRIEFING DAY 060923 69.33,Health and Wellbeing,Catering,A41000
http://opendatacommunities.org/id/london-borough-council/sutton,London Borough of Sutton,30/08/0202,10014267,4.92,AMZNMKTPLACE AMAZON.C,PLIT - 100 X 7OZ SINGLE WALL WHITE PAPER CUPS,Health and Wellbeing,Insurance Claims,A44261
http://opendatacommunities.org/id/london-borough-council/sutton,London Borough of Sutton,30/08/0202,10014267,32.91,AMZNMKTPLACE AMAZON.C,PLIT - RELIANCEUK 24 PACK WHITE SUBLIMATION MUGS,Health and Wellbeing,Insurance Claims,A44261
http://opendatacommunities.org/id/london-borough-council/sutton,London Borough of Sutton,23/09/0202,10014267,25,TESCO STORES 323,"OVERNOR LEAVING""REDACTED - PERSONAL DATA""",Health and Wellbeing,Hospitality,A46020
http://opendatacommunities.org/id/london-borough-council/sutton,London Borough of Sutton,29/08/0202,10014267,8.48,TRAINLIN,ICKET TO IDEAS STORE LONDON - KS,Health and Wellbeing,Miscellaneous Expenses,A49000
http://opendatacommunities.org/id/london-borough-council/sutton,London Borough of Sutton,29/08/0202,10014267,6.67,POUNDLAND LTD - 121,OUNDLAND 290823 STAFF TRAINING DAY RESOURCES 8.00,Health and Wellbeing,Equipment And Materials Purchase,A40000
http://opendatacommunities.org/id/london-borough-council/sutton,London Borough of Sutton,21/09/0202,10014267,247.83,AMZNMKTPLAC,OPIER PAPER FOR CROSS COLLEGE,Health and Wellbeing,Equipment And Materials Purchase,A40000
http://opendatacommunities.org/id/london-borough-council/sutton,London Borough of Sutton,13/09/0202,10014267,166.53,AMZNMKTPLAC,HROME BOOK CHARGERS - IT,Health and Wellbeing,IT Software Purchase,A45040
http://opendatacommunities.org/id/london-borough-council/sutton,London Borough of Sutton,05/09/0202,10014267,27.49,AMZNMKTPLAC,EADPHONES T. TRAETTO IT,Health and Wellbeing,IT Software Purchase,A45040
http://opendatacommunities.org/id/london-borough-council/sutton,London Borough of Sutton,01/09/0202,10014267,74.25,GOOGLE GSUITE SUTTONC,OOGLE CLOUD EMEA LIMITED 4793054623,Health and Wellbeing,Subscriptions,A47010
http://opendatacommunities.org/id/london-borough-council/sutton,London Borough of Sutton,30/08/0202,10014267,8.32,AMZNMKTPLAC,PLIT - 100M BUNTING BANNER,Health and Wellbeing,Equipment And Materials Purchase,A40000
http://opendatacommunities.org/id/london-borough-council/sutton,London Borough of Sutton,09/09/0202,10014267,3.6,GREGG,REGGS OPEN EVENT HIGH ST DRINK 3.60 090923,Health and Wellbeing,Equipment And Materials Purchase,A40000
http://opendatacommunities.org/id/london-borough-council/sutton,London Borough of Sutton,07/09/0202,10014267,47.99,ADOBE STOC,DOBE 070923 47.99,Health and Wellbeing,Publicity,A44266
http://opendatacommunities.org/id/london-borough-council/sutton,London Borough of Sutton,06/09/0202,10014267,41.34,WWW.INSTANTPRINT.,NSTANTPRINT 49.61 A1 POSTERS 060923,Health and Wellbeing,Publicity,A44266
http://opendatacommunities.org/id/london-borough-council/sutton,London Borough of Sutton,05/09/0202,10014267,4.67,WILKO RETAIL LIMITE,ILKO OPEN EVENT 5.60 050923,Health and Wellbeing,Publicity,A44266
http://opendatacommunities.org/id/london-borough-council/sutton,London Borough of Sutton,09/09/0202,10014267,2.08,POUNDLAND LTD - 121,OUNDLAND HIGH ST OPEN EVENT 060923 2.50,Health and Wellbeing,Publicity,A44266
http://opendatacommunities.org/id/london-borough-council/sutton,London Borough of Sutton,31/08/0202,10014267,20.64,FACEBK  PS4XHQ76A,ACEBOOK AD 20.64 310823,Health and Wellbeing,Publicity,A44266
http://opendatacommunities.org/id/london-borough-council/sutton,London Borough of Sutton,30/08/0202,10014267,92.02,MAILCHIM,AILCHIMP 110.42 300823,Health and Wellbeing,Publicity,A44266
http://opendatacommunities.org/id/london-borough-council/sutton,London Borough of Sutton,04/09/0202,10014267,150.22,THOMAS RIDLEY FOODSER,ENDING MACHINE SUPPLIES,Health and Wellbeing,Provisions,A41006
http://opendatacommunities.org/id/london-borough-council/sutton,London Borough of Sutton,07/09/0202,10014267,11.48,WWW.SCREWFIX.CO,IR CON UNITS DUCTING,Health and Wellbeing,Miscellaneous Expenses,A49000
http://opendatacommunities.org/id/london-borough-council/sutton,London Borough of Sutton,12/09/0202,10014267,42.42,LONDON AND BELCHER LT,YMPATHY FLOWERS FOR CORALIE,Health and Wellbeing,Miscellaneous Expenses,A49000
http://opendatacommunities.org/id/london-borough-council/sutton,London Borough of Sutton,10/09/0202,10014267,116.66,AMZNMKTPLACE AMAZON.C,HAIR FOR GARETH HUNT,Health and Wellbeing,Insurance Claims,A44261
http://opendatacommunities.org/id/london-borough-council/sutton,London Borough of Sutton,10/09/0202,10014267,116.66,AMZNMKTPLAC,HAIR FOR LYNN SMITH,Health and Wellbeing,Insurance Claims,A44261
http://opendatacommunities.org/id/london-borough-council/sutton,London Borough of Sutton,11/09/0202,10014267,43.32,AMZNMKTPLAC,PLIT - OYPLA ELECTRICAL 8L CATERING HOT WATER BOILER TEA URN COFFEE,Health and Wellbeing,Insurance Claims,A44261
http://opendatacommunities.org/id/london-borough-council/sutton,London Borough of Sutton,31/08/0202,10014267,57.54,WWW.CASSART.CO.U,ASS ART 310823 69.05,Health and Wellbeing,Equipment And Materials Purchase,A40000
http://opendatacommunities.org/id/london-borough-council/sutton,London Borough of Sutton,11/09/0202,10014267,54,AMZNBUSINESS 142TU74L,B31IK6TABEI CACHE BOOKS CC,Health and Wellbeing,Books,A43050
http://opendatacommunities.org/id/london-borough-council/sutton,London Borough of Sutton,14/09/0202,10014267,169.7,EBAY COMMERCE UK LT,IO MICROCURRENT FACIAL SKIN BEAUTY SALON SPA MACHINE,Health and Wellbeing,Equipment And Materials Purchase,A40000
http://opendatacommunities.org/id/london-borough-council/sutton,London Borough of Sutton,14/09/0202,10014267,147.37,EBAY COMMERCE UK LT,-1 HIGH FREQUENCY GALVANIC VACUUM SPRAY,Health and Wellbeing,Equipment And Materials Purchase,A40000
http://opendatacommunities.org/id/london-borough-council/sutton,London Borough of Sutton,14/09/0202,10014267,110.05,EBAY COMMERCE UK LT,ICRODERMABRASION MACHINE PEEL,Health and Wellbeing,Equipment And Materials Purchase,A40000
http://opendatacommunities.org/id/london-borough-council/sutton,London Borough of Sutton,06/09/0202,10014267,7.99,AMZNMKTPLAC,PLIT - ACTIVITY BOOK FOR KIDS,People's Services,LAC - Education,A44280
http://opendatacommunities.org/id/london-borough-council/sutton,London Borough of Sutton,06/09/0202,10014267,4.07,AMZNMKTPLAC,ALANCING ENTRY AMOUNT,People's Services,LAC - Education,A44280
http://opendatacommunities.org/id/london-borough-council/sutton,London Borough of Sutton,30/08/0202,10014267,216.62,AMZNMKTPLAC,PLIT - ZERO GRAVITY ULTIMA 5 RECTANGULAR BARREL TRAMPOLINE,People's Services,LAC - Education,A44280
http://opendatacommunities.org/id/london-borough-council/sutton,London Borough of Sutton,30/08/0202,10014267,5.79,AMZNMKTPLAC,ALANCING ENTRY AMOUNT,People's Services,LAC - Education,A44280
http://opendatacommunities.org/id/london-borough-council/sutton,London Borough of Sutton,06/09/0202,10014267,4.99,AMZNBUSINESS 1U34J7H4,PLIT - TOO LATE: THE DARKEST THRILLER OF THE YEAR,People's Services,LAC - Education,A44280
http://opendatacommunities.org/id/london-borough-council/sutton,London Borough of Sutton,17/09/0202,10014267,-23.32,AMZNMKTPLAC,PLIT - WRIGHTFITS MEN PRO-11 WORK TROUSERS BLACK,People's Services,LAC - Education,A44280
http://opendatacommunities.org/id/london-borough-council/sutton,London Borough of Sutton,13/09/0202,10014267,37.95,AMZNMKTPLAC,PLIT - BLACK HAMMER MENS LEATHER SAFETY BOOTS,People's Services,LAC - Education,A44280
http://opendatacommunities.org/id/london-borough-council/sutton,London Borough of Sutton,13/09/0202,10014267,8.93,AMZNMKTPLACE AMAZON.C,PLIT - HIGHLIGHTER,People's Services,LAC - Education,A44280
http://opendatacommunities.org/id/london-borough-council/sutton,London Borough of Sutton,13/09/0202,10014267,9.16,AMZNMKTPLAC,PLIT - FILE DIVIDERS,People's Services,LAC - Education,A44280
http://opendatacommunities.org/id/london-borough-council/sutton,London Borough of Sutton,06/09/0202,10014267,5,AMZNBUSINESS 1U34J7H4,PLIT - CONFESS: COLLEEN HOOVER,People's Services,LAC - Education,A44280
http://opendatacommunities.org/id/london-borough-council/sutton,London Borough of Sutton,06/09/0202,10014267,7.35,AMZNBUSINESS 1U3286HJ,"PLIT - TREE: SEASONS COME, SEASONS GO",People's Services,LAC - Education,A44280
http://opendatacommunities.org/id/london-borough-council/sutton,London Borough of Sutton,06/09/0202,10014267,7.99,AMZNBUSINESS 1U9XC3HH,PLIT - ORANGEBOY,People's Services,LAC - Education,A44280
http://opendatacommunities.org/id/london-borough-council/sutton,London Borough of Sutton,07/09/0202,10014267,2.8,AMZNMKTPLAC,ALANCING ENTRY AMOUNT,People's Services,LAC - Education,A44280
http://opendatacommunities.org/id/london-borough-council/sutton,London Borough of Sutton,07/09/0202,10014267,7.69,AMZNBUSINESS 1U5UI0Q8,PLIT - FREDDIE THE FORGETFUL FROG: A CHILDREN'S PICTURE BOOK FOR BEDTIME STORIES,People's Services,LAC - Education,A44280
http://opendatacommunities.org/id/london-borough-council/sutton,London Borough of Sutton,12/09/0202,10014267,23.32,AMZNMKTPLACE AMAZON.C,PLIT - WRIGHTFITS MEN PRO-11 WORK TROUSERS BLACK,People's Services,LAC - Education,A44280
http://opendatacommunities.org/id/london-borough-council/sutton,London Borough of Sutton,07/09/0202,10014267,6.5,AMZNBUSINESS 1U2BM2B4,PLIT - THE LEAF THIEF,People's Services,LAC - Education,A44280
http://opendatacommunities.org/id/london-borough-council/sutton,London Borough of Sutton,07/09/0202,10014267,1.44,AMZNMKTPLAC,PLIT - FADE OUT: 07,People's Services,LAC - Education,A44280